lending/lending_fUSD_20240710
["ID","MTS","AMOUNT","RATE_DAILY","PERIOD"]
[331686675,1720639761878,2831.82534197,0.00011199,2]
[331686684,1720639803860,7096.36275677,0.00011199,2]
[331686692,1720639832661,-572.5872,0.00012286,2]
[331686693,1720639832670,-227.29136124,0.00012314,2]
[331686694,1720639832679,-2079.87339876,0.00012386,2]
[331686716,1720639838488,-2686.0,0.00012386,2]
[331686718,1720639838506,-783.33050124,0.00012386,2]
[331686721,1720639838516,-250.0,0.00012647,2]
[331686722,1720639838527,-229.57,0.00012658,2]
[331686723,1720639838537,-167.3,0.00012686,2]
[331686724,1720639838547,-377.67,0.00012745,2]
[331686725,1720639838558,-500.0,0.00012761,2]
[331686726,1720639838569,-300.0,0.00012762,2]
[331686727,1720639838578,-275.97775291,0.00012762,2]
[331686728,1720639838591,-709.08266212,0.00012762,2]
[331686729,1720639838614,-358.9537836,0.00012762,2]
[331686730,1720639838626,-600.34580137,0.00012762,2]
[331686731,1720639838637,-200.0,0.00012763,2]
[331686732,1720639838646,-499.99,0.00012763,2]
[331686733,1720639838656,-250.0,0.00012776,2]
[331686734,1720639838667,-800.0,0.00012778,2]
[331686735,1720639838677,-11630.91,0.00012792,2]
[331686736,1720639838687,-200.0,0.00012866,2]
[331686737,1720639838697,-1250.0,0.00013,2]
[331686738,1720639838707,-327.775,0.00013028,2]
[331686739,1720639838716,-150.0,0.00013127,2]
[331686740,1720639838726,-8830.617432,0.00013128,2]
[331686741,1720639838736,-885.36042817,0.00013128,2]
[331686742,1720639838746,-945.60570938,0.00013128,2]
[331686743,1720639838756,-259.04,0.00013138,2]
[331686744,1720639838766,-253.919601,0.00013316,2]
[331686745,1720639838777,-150.762748,0.00013316,2]
[331686746,1720639838790,-155.0,0.00013574,2]
[331686747,1720639838800,-1620.3546795,0.00013574,2]
[331686748,1720639838810,-500.0,0.00013698,2]
[331686749,1720639838820,-500.0,0.00013698,2]
[331686750,1720639838831,-500.0,0.00013698,2]
[331686751,1720639838841,-500.0,0.00013698,2]
[331686752,1720639838851,-500.0,0.00013698,2]
[331686753,1720639838862,-500.0,0.00013698,2]
[331686754,1720639838872,-500.0,0.00013698,2]
[331686755,1720639838883,-572.91,0.00013698,2]
[331686756,1720639838893,-500.0,0.00013698,2]
[331686757,1720639838903,-500.0,0.00013698,2]
[331686758,1720639838913,-500.0,0.00013698,2]
[331686759,1720639838923,-500.0,0.00013698,2]
[331686760,1720639838934,-500.0,0.00013698,2]
[331686761,1720639838945,-500.0,0.00013698,2]
[331686762,1720639838955,-500.0,0.00013698,2]
[331686763,1720639838966,-500.0,0.00013698,2]
[331686764,1720639838976,-500.0,0.00013698,2]
[331686765,1720639838986,-500.0,0.00013698,2]
[331686766,1720639838996,-500.0,0.00013698,2]
[331686767,1720639839007,-500.0,0.00013698,2]
[331686768,1720639839019,-606.48130635,0.00013698,2]
[331686769,1720639839031,-500.0,0.00013698,2]
[331686770,1720639839042,-500.0,0.00013698,2]
[331686771,1720639839052,-500.0,0.00013698,2]
[331686772,1720639839065,-500.0,0.00013698,2]
[331686773,1720639839076,-500.0,0.00013698,2]
[331686774,1720639839086,-500.0,0.00013698,2]
[331686775,1720639839096,-500.0,0.00013698,2]
[331686776,1720639839106,-427.5689688,0.00013698,2]
[331686777,1720639839116,-500.0,0.00013698,2]
[331686778,1720639839126,-915.18,0.00013698,2]
[331686779,1720639839137,-500.0,0.00013698,2]
[331686780,1720639839146,-500.0,0.00013698,2]
[331686781,1720639839156,-1534.27,0.00013698,2]
[331686782,1720639839167,-500.0,0.00013698,2]
[331686783,1720639839176,-500.0,0.00013698,2]
[331686784,1720639839186,-500.0,0.00013698,2]
[331686785,1720639839196,-219.89,0.00013699,2]
[331686786,1720639839207,-250.0,0.00013699,2]
[331686787,1720639839218,-1000.0,0.000137,2]
[331686788,1720639839229,-1000.0,0.000137,2]
[331686789,1720639839239,-1000.0,0.000137,2]
[331686791,1720639839249,-1000.0,0.000137,2]
[331686793,1720639839259,-1000.0,0.000137,3]
[331686795,1720639839269,-1000.0,0.000137,3]
[331686797,1720639839280,-1000.0,0.000137,3]
[331686799,1720639839290,-1000.0,0.000137,3]
[331686801,1720639839299,-1000.0,0.000137,3]
[331686803,1720639839309,-1000.0,0.000137,2]
[331686805,1720639839319,-1000.0,0.000137,2]
[331686807,1720639839329,-1000.0,0.000137,2]
[331686809,1720639839340,-1000.0,0.000137,3]
[331686811,1720639839351,-1000.0,0.000137,3]
[331686813,1720639839361,-1000.0,0.000137,2]
[331686815,1720639839371,-295.3553,0.00013708,2]
[331686817,1720639839381,-1500.0,0.00013741,2]
[331686819,1720639839392,-150.0,0.00013747,2]
[331686821,1720639839402,-458.66079249,0.00013753,2]
[331686823,1720639839413,-915.18,0.00013753,2]
[331686825,1720639839423,-500.0,0.00013753,2]
[331686827,1720639839434,-1534.27,0.00013753,2]
[331686829,1720639839444,-150.0,0.00013756,2]
[331686831,1720639839455,-500.0,0.00013758,2]
[331686833,1720639839466,-500.0,0.00013758,2]
[331686835,1720639839476,-500.0,0.00013758,2]
[331686837,1720639839486,-500.0,0.00013758,2]
[331686839,1720639839496,-500.0,0.00013758,2]
[331686842,1720639839506,-500.0,0.00013758,2]
[331686844,1720639839516,-424.84209274,0.00013758,2]
[331686846,1720639839532,-162.71,0.00013758,2]
[331686848,1720639839542,-500.0,0.00013758,2]
[331686850,1720639839552,-500.0,0.00013758,2]
[331686852,1720639839562,-500.0,0.00013758,2]
[331686853,1720639839572,-500.0,0.00013758,2]
[331686856,1720639839582,-500.0,0.00013758,2]
[331686857,1720639839593,-500.0,0.00013758,2]
[331686859,1720639839603,-500.0,0.00013758,2]
[331686863,1720639839624,-500.0,0.00013758,2]
[331686865,1720639839636,-500.0,0.00013758,2]
[331686867,1720639839646,-500.0,0.00013758,2]
[331686869,1720639839657,-500.0,0.00013758,2]
[331686871,1720639839667,-500.0,0.00013758,2]
[331686873,1720639839678,-500.0,0.00013758,2]
[331686875,1720639839688,-500.0,0.00013758,2]
[331686877,1720639839699,-500.0,0.00013758,2]
[331686879,1720639839710,-500.0,0.00013758,2]
[331686881,1720639839721,-500.0,0.00013758,2]
[331686883,1720639839732,-500.0,0.00013758,2]
[331686885,1720639839742,-516.24,0.00013758,2]
[331686887,1720639839752,-500.0,0.00013758,2]
[331686889,1720639839762,-500.0,0.00013758,2]
[331686891,1720639839778,-500.0,0.00013758,2]
[331686893,1720639839788,-562.26,0.00013758,2]
[331686895,1720639839799,-500.0,0.00013758,2]
[331686897,1720639839809,-500.0,0.00013758,2]
[331686899,1720639839820,-500.0,0.00013758,2]
[331686901,1720639839830,-500.0,0.00013758,2]
[331686904,1720639839840,-500.0,0.00013758,2]
[331686906,1720639839851,-500.0,0.00013758,2]
[331686908,1720639839862,-500.0,0.00013758,2]
[331686910,1720639839872,-500.0,0.00013758,2]
[331686912,1720639839883,-500.0,0.00013758,2]
[331686914,1720639839893,-500.0,0.00013758,2]
[331686916,1720639839904,-500.0,0.00013758,2]
[331686918,1720639839914,-568.81,0.00013758,2]
[331686920,1720639839924,-584.13,0.00013758,2]
[331686922,1720639839935,-500.0,0.00013758,2]
[331686924,1720639839946,-500.0,0.00013758,2]
[331686926,1720639839956,-500.0,0.00013758,2]
[331686928,1720639839967,-500.0,0.00013758,2]
[331686930,1720639839977,-500.0,0.00013758,2]
[331686932,1720639839987,-500.0,0.00013758,2]
[331686934,1720639839998,-574.34,0.00013758,2]
[331686936,1720639840009,-500.0,0.00013758,2]
[331686938,1720639840020,-150.64823718,0.00013764,2]
[331686940,1720639840031,-150.0,0.00013772,2]
[331686942,1720639840041,-1500.0,0.00013772,2]
[331686944,1720639840052,-150.0,0.00013774,2]
[331686946,1720639840061,-154.12627553,0.00013781,2]
[331686948,1720639840071,-150.0,0.00013789,2]
[331686950,1720639840081,-150.0,0.00013789,2]
[331686952,1720639840091,-150.0,0.0001379,2]
[331686954,1720639840101,-150.0,0.00013795,2]
[331686956,1720639840111,-150.0,0.00013801,2]
[331686958,1720639840121,-298.0327068,0.00013803,2]
[331686960,1720639840130,-150.0,0.00013806,2]
[331686962,1720639840140,-915.18,0.00013808,2]
[331686964,1720639840150,-500.0,0.00013808,2]
[331686966,1720639840160,-1534.27,0.00013808,2]
[331686968,1720639840170,-217.43,0.00013812,2]
[331686970,1720639840180,-298.03270679,0.00013814,2]
[331686972,1720639840190,-150.0,0.00013817,2]
[331686973,1720639840200,-298.03270679,0.00013825,2]
[331686974,1720639840210,-1500.0,0.0001383,2]
[331686975,1720639840219,-1500.0,0.00013833,2]
[331686976,1720639840229,-1500.0,0.00013835,2]
[331686977,1720639840239,-298.03270679,0.00013835,2]
[331686978,1720639840249,-150.0,0.00013846,2]
[331686979,1720639840259,-298.03270679,0.00013846,2]
[331686980,1720639840269,-500.0,0.00013848,2]
[331686981,1720639840283,-500.0,0.00013848,2]
[331686982,1720639840294,-500.0,0.00013848,2]
[331686983,1720639840304,-500.0,0.00013848,2]
[331686985,1720639840314,-500.0,0.00013848,2]
[331686988,1720639840328,-500.0,0.00013848,2]
[331687027,1720639840686,-492.31810555,0.00013848,2]
[331687029,1720639840696,-183.22917272,0.00013848,2]
[331687031,1720639840706,-280.67928867,0.00013848,2]
[331687033,1720639840715,-644.57,0.00013848,2]
[331687035,1720639840725,-500.0,0.00013848,2]
[331687037,1720639840735,-286.28342613,0.00013848,2]
[331687039,1720639840748,-213.71657387,0.00013848,2]
[331687041,1720639840761,-66.42307267,0.00013848,2]
[331687045,1720639840788,-193.54661277,0.00013698,2]
[331687047,1720639840797,-433.57692733,0.00013848,2]
[331687049,1720639840807,-500.0,0.00013848,2]
[331687051,1720639840816,-372.8764599,0.00013848,2]
[331687053,1720639840828,-127.1235401,0.00013848,2]
[331687056,1720639840838,-500.0,0.00013848,2]
[331687058,1720639840848,-500.0,0.00013848,2]
[331687060,1720639840858,-500.0,0.00013848,2]
[331687062,1720639840868,-507.04,0.00013848,2]
[331687064,1720639840877,-500.0,0.00013848,2]
[331687066,1720639840887,-500.0,0.00013848,2]
[331687068,1720639840896,-463.40266406,0.00013848,2]
[331687070,1720639840909,-36.59733594,0.00013848,2]
[331687072,1720639840918,-227.53766406,0.00013848,2]
[331687074,1720639840930,-272.46233594,0.00013848,2]
[331687076,1720639840942,-2051.34,0.00013848,2]
[331687078,1720639840951,-500.0,0.00013848,2]
[331687080,1720639840961,-298.03270679,0.00013857,2]
[331687082,1720639840971,-150.0,0.00013857,2]
[331687084,1720639840981,-150.0,0.0001386,2]
[331687086,1720639840991,-150.0,0.0001386,2]
[331687088,1720639841000,-150.0,0.0001386,2]
[331687090,1720639841011,-150.0,0.0001386,2]
[331687092,1720639841022,-150.0,0.0001386,2]
[331687094,1720639841032,-150.0,0.0001386,2]
[331687096,1720639841041,-150.0,0.0001386,2]
[331687098,1720639841050,-202.77651,0.0001386,2]
[331687101,1720639841060,-157.35475,0.0001386,2]
[331687103,1720639841070,-915.18,0.00013863,2]
[331687105,1720639841080,-624.19212208,0.00013863,2]
[331687107,1720639841091,-1534.27,0.00013863,2]
[331687109,1720639841100,-298.03270679,0.00013868,2]
[331687111,1720639841110,-150.0,0.00013874,2]
[331687113,1720639841120,-150.0,0.00013878,2]
[331687115,1720639841130,-298.03270679,0.00013878,2]
[331687117,1720639841139,-2500.0,0.00013889,2]
[331687119,1720639841149,-298.03270679,0.00013889,2]
[331687121,1720639841159,-300.0,0.00013893,2]
[331687123,1720639841168,-150.0,0.00013895,2]
[331687125,1720639841179,-231.38350399,0.00013896,2]
[331687127,1720639841190,-500.0,0.00013898,2]
[331687129,1720639841200,-446.35,0.00013898,2]
[331687131,1720639841210,-221.99,0.00013898,2]
[331687133,1720639841219,-500.0,0.00013898,2]
[331687135,1720639841228,-500.0,0.00013898,2]
[331687138,1720639841237,-500.0,0.00013898,2]
[331687140,1720639841247,-5756.35,0.00013898,2]
[331687142,1720639841257,-1707.36,0.00013899,2]
[331687144,1720639841266,-1129.6983,0.000139,2]
[331687146,1720639841276,-1000.0,0.000139,2]
[331687148,1720639841286,-175.48904366,0.000139,2]
[331687150,1720639841295,-298.03270679,0.000139,2]
[331687152,1720639841305,-7500.0,0.000139,2]
[331687154,1720639841315,-2051.34,0.00013903,2]
[331687156,1720639841324,-300.0,0.00013912,2]
[331687158,1720639841334,-262.82394152,0.00013917,2]
[331687164,1720639841381,-652.35605848,0.00013917,2]
[331687166,1720639841391,-1534.27,0.00013917,2]
[331687167,1720639841401,-1556.10029983,0.00013918,2]
[331687169,1720639841411,-1500.0,0.00013925,2]
[331687170,1720639841421,-1000.0,0.0001393,2]
[331687171,1720639841430,-1000.0,0.0001393,2]
[331687172,1720639841440,-1000.0,0.0001393,2]
[331687173,1720639841450,-492.6982,0.0001393,2]
[331687174,1720639841459,-150.0,0.00013934,2]
[331687175,1720639841469,-150.0,0.00013935,2]
[331687176,1720639841479,-150.0,0.00013937,2]
[331687177,1720639841488,-1500.0,0.00013937,2]
[331687178,1720639841498,-150.0,0.00013944,2]
[331687179,1720639841508,-150.0,0.00013947,2]
[331687180,1720639841518,-150.0,0.00013953,2]
[331687181,1720639841528,-514.08836606,0.00013953,2]
[331687182,1720639841538,-500.0,0.00013953,2]
[331687183,1720639841547,-500.0,0.00013953,2]
[331687184,1720639841557,-500.0,0.00013953,2]
[331687185,1720639841567,-5756.35,0.00013953,2]
[331687186,1720639841576,-150.0,0.00013958,2]
[331687187,1720639841586,-2051.34,0.00013958,2]
[331687188,1720639841595,-150.0,0.00013966,2]
[331687189,1720639841605,-150.0,0.00013972,2]
[331687190,1720639841615,-915.18,0.00013972,2]
[331687191,1720639841624,-1534.27,0.00013972,2]
[331687192,1720639841633,-150.762748,0.00013981,2]
[331687193,1720639841643,-150.0,0.00013982,2]
[331687194,1720639841652,-180.02801105,0.00013986,2]
[331687195,1720639841662,-500.0,0.00013988,2]
[331687196,1720639841672,-500.0,0.00013988,2]
[331687197,1720639841682,-500.0,0.00013988,2]
[331687198,1720639841691,-516.52559589,0.00013988,2]
[331687199,1720639841700,-150.0,0.00013989,2]
[331687200,1720639841709,-467158.20548323,0.00013989,2]
[331687201,1720639841722,-312.783,0.00013989,2]
[331687202,1720639841772,-528.93489931,0.00012314,2]
[331687203,1720639841783,-313.82233916,0.00013057,2]
[331687204,1720639841792,-264.9253599,0.00013989,2]
[331687205,1720639841808,-600.0,0.00013989,2]
[331687206,1720639843215,-3020.41878,0.00013989,2]
[331687207,1720639843303,-500.87490691,0.00013989,2]
[331687208,1720639843315,-2035.54060394,0.00013989,2]
[331687239,1720639845279,-328.00238978,0.00013989,2]
[331687262,1720639846458,-1014.8698506,0.00013989,2]
[331687263,1720639846471,-258.31960914,0.00013989,2]
[331687264,1720639846482,-863.9389038,0.00013989,2]
[331687265,1720639846494,-253.43075151,0.00013989,2]
[331687266,1720639846506,-941.62099497,0.00013989,2]
[331687275,1720639969038,14853.13288436,0.00011199,2]
[331687276,1720640004588,500.0,0.00025126,120]
[331687277,1720640025521,3394.60860961,0.00011199,2]
[331687278,1720640035049,5346.85697195,9e-05,2]
[331687279,1720640044640,10176.22477077,0.000118,2]
[331687280,1720640067747,2585.21065673,0.00011199,2]
[331687281,1720640096888,2595.74055892,0.00011199,2]
[331687282,1720640123262,1500.0,0.00011199,2]
[331687283,1720640142387,1013.87325221,0.00011199,2]
[331687285,1720640157553,1250.108649,0.00011199,2]
[331687287,1720640206079,661.61102099,0.00011199,2]
[331687289,1720640241356,227.29136124,0.00011199,2]
[331687291,1720640266718,364.91102497,0.00011199,2]
[331687292,1720640282624,156.38710992,0.00011199,2]
[331687293,1720640288859,416.45939279,0.00011199,2]
[331687294,1720640295707,366.44506221,0.00011199,2]
[331687295,1720640310460,258.99665836,0.00011199,2]
[331687296,1720640317090,359.06627926,0.00011199,2]
[331687297,1720640323808,302.51304308,0.00011199,2]
[331687300,1720640348491,266.66,0.00010909,2]
[331687301,1720640370993,500.0,0.00027,120]
[331687302,1720640408291,1271.86854711,0.00011199,2]
[331687306,1720640462769,764.1347274,0.00011199,2]
[331687307,1720640553684,401.57927817,0.00011199,2]
[331687308,1720640565492,19626.7662442,0.00011199,2]
[331687309,1720640660264,155.38062721,0.00011199,2]
[331687310,1720640665843,590.8887786,0.00011199,2]
[331687312,1720640730866,921.27116721,0.00011199,2]
[331687314,1720640861426,241.44985364,0.00011199,2]
[331687315,1720640920424,83682.21426848,0.00011199,2]
[331687316,1720640945449,268.41,0.00010725,2]
[331687330,1720640980513,167.79,0.00010077,2]
[331687332,1720641014653,155.0,0.00011199,2]
[331687333,1720641022781,2738.43275453,0.00011199,2]
[331687337,1720641038016,-2272.64104107,0.00012214,2]
[331687338,1720641038026,-1500.0,0.00012214,2]
[331687339,1720641038036,-366.47039512,0.00012302,2]
[331687340,1720641038045,-375.89105475,0.00012302,2]
[331687341,1720641038055,-380.32591715,0.00012302,2]
[331687342,1720641038064,-200.8,0.00012596,2]
[331687343,1720641038074,-150.0,0.000126,2]
[331687344,1720641038084,-1109.13,0.00012643,2]
[331687345,1720641038093,-183.65,0.00012647,2]
[331687346,1720641038103,-250.0,0.00012647,2]
[331687347,1720641038113,-250.0,0.00012693,2]
[331687348,1720641038123,-500.0,0.00012739,2]
[331687349,1720641038133,-1952.65,0.00012739,2]
[331687350,1720641038145,-150.0,0.0001274,2]
[331687351,1720641038154,-205.31,0.0001274,2]
[331687352,1720641038164,-200.0,0.00012742,2]
[331687353,1720641038174,-20544.7,0.00012757,2]
[331687354,1720641038184,-150.0,0.00012761,2]
[331687355,1720641038193,-1742.55,0.00012762,2]
[331687356,1720641038202,-171.15,0.00012809,2]
[331687357,1720641038212,-167.3,0.00012848,2]
[331687358,1720641038222,-150.99,0.0001287,2]
[331687359,1720641038232,-19066.81,0.00012874,2]
[331687360,1720641038242,-499.99,0.00012874,2]
[331687361,1720641038252,-1000.0,0.00012892,2]
[331687362,1720641038262,-268.41,0.00012989,2]
[331687363,1720641038272,-1250.0,0.00013,2]
[331687364,1720641038282,-263.50285156,0.00013128,2]
[331687365,1720641038292,-5599.94548789,0.00013472,2]
[331687366,1720641038301,-3393.88143666,0.00013574,2]
[331687367,1720641038311,-58092.38315466,0.00013681,2]
[331687368,1720641038331,-13692.33477317,0.00013681,2]
[331687369,1720641038341,-219.89,0.00013699,2]
[331687370,1720641038351,-150.0,0.00013735,2]
[331687371,1720641038361,-150.0,0.00013736,2]
[331687372,1720641038372,-150.0,0.00013744,2]
[331687373,1720641038382,-150.0,0.00013746,2]
[331687374,1720641038392,-150.0,0.0001376,2]
[331687375,1720641038402,-150.0,0.00013761,2]
[331687377,1720641038413,-150.0,0.00013777,2]
[331687379,1720641038423,-150.0,0.0001378,2]
[331687381,1720641038434,-150.0,0.00013781,2]
[331687383,1720641038444,-150.0,0.00013793,2]
[331687385,1720641038455,-268.22943612,0.00013799,2]
[331687387,1720641038465,-268.22943612,0.00013803,2]
[331687389,1720641038474,-150.0,0.00013804,2]
[331687391,1720641038484,-150.0,0.0001381,2]
[331687393,1720641038494,-268.22943612,0.00013815,2]
[331687395,1720641038505,-150.0,0.00013818,2]
[331687397,1720641038515,-268.22943612,0.00013827,2]
[331687399,1720641038526,-150.0,0.00013839,2]
[331687401,1720641038536,-268.22943612,0.00013839,2]
[331687403,1720641038546,-150.0,0.0001384,2]
[331687405,1720641038556,-150.0,0.00013849,2]
[331687407,1720641038566,-157.35476,0.0001385,2]
[331687409,1720641038576,-268.22943612,0.00013852,2]
[331687411,1720641038586,-255.0,0.00013858,2]
[331687413,1720641038596,-268.22943612,0.00013864,2]
[331687415,1720641038605,-150.0,0.00013874,2]
[331687417,1720641038615,-268.22943612,0.00013876,2]
[331687419,1720641038625,-150.0,0.00013876,2]
[331687421,1720641038635,-500.0,0.00013876,2]
[331687423,1720641038645,-560.73895051,0.00013877,2]
[331687425,1720641038659,-678.46643896,0.00013877,2]
[331687427,1720641038672,-680.9102,0.00013877,2]
[331687429,1720641039988,-926.00597935,0.00013877,2]
[331687431,1720641040372,-153.87843118,0.00013877,2]
[331687433,1720641040382,-312.63438609,0.00013877,2]
[331687435,1720641040394,-187.36561391,0.00013877,2]
[331687437,1720641040403,-500.0,0.00013877,2]
[331687439,1720641040413,-907.07791859,0.0001388,2]
[331687442,1720641040425,-17094.00632434,0.0001388,2]
[331687443,1720641040436,-268.22943612,0.00013888,2]
[331687444,1720641040445,-150.0,0.00013891,2]
[331687445,1720641040454,-150.0,0.00013892,2]
[331687446,1720641040463,-173.9811603,0.000139,2]
[331687447,1720641040472,-268.22943612,0.000139,2]
[331687448,1720641040485,-1915.0,0.000139,2]
[331687449,1720641040495,-2510.22533444,0.00013912,2]
[331687450,1720641040505,-150.0,0.00013936,2]
[331687451,1720641040514,-150.0,0.00013937,2]
[331687452,1720641040527,-150.0,0.00013954,2]
[331687453,1720641040538,-150.0,0.00013958,2]
[331687454,1720641040547,-150.0,0.00013975,2]
[331687455,1720641040556,-150.0,0.00013981,2]
[331687456,1720641040565,-686.39,0.00013988,2]
[331687457,1720641040575,-500.0,0.00013988,2]
[331687458,1720641040584,-500.0,0.00013988,2]
[331687459,1720641040593,-500.0,0.00013988,2]
[331687460,1720641040602,-500.0,0.00013988,2]
[331687461,1720641040611,-500.0,0.00013988,2]
[331687462,1720641040621,-500.0,0.00013988,2]
[331687463,1720641040630,-500.0,0.00013988,2]
[331687464,1720641040639,-500.0,0.00013988,2]
[331687465,1720641040648,-500.0,0.00013988,2]
[331687466,1720641040657,-531.99,0.00013988,2]
[331687467,1720641040667,-500.0,0.00013988,2]
[331687468,1720641040676,-500.0,0.00013988,2]
[331687469,1720641040685,-603.11,0.00013988,2]
[331687470,1720641040695,-500.0,0.00013988,2]
[331687471,1720641040704,-500.0,0.00013988,2]
[331687472,1720641040713,-500.0,0.00013988,2]
[331687473,1720641040723,-500.0,0.00013988,2]
[331687474,1720641040733,-556.92,0.00013988,2]
[331687475,1720641040742,-500.0,0.00013988,2]
[331687476,1720641040751,-500.0,0.00013988,2]
[331687477,1720641040763,-500.0,0.00013988,2]
[331687478,1720641040772,-500.0,0.00013988,2]
[331687479,1720641040782,-500.0,0.00013988,2]
[331687480,1720641040792,-500.0,0.00013988,2]
[331687481,1720641040800,-562.52,0.00013988,2]
[331687482,1720641040809,-1150.7,0.00013988,2]
[331687483,1720641040818,-500.0,0.00013988,2]
[331687484,1720641040827,-500.0,0.00013988,2]
[331687485,1720641040838,-500.0,0.00013988,2]
[331687486,1720641040847,-500.0,0.00013988,2]
[331687487,1720641040860,-500.0,0.00013988,2]
[331687488,1720641040869,-500.0,0.00013988,2]
[331687489,1720641040878,-500.0,0.00013988,2]
[331687490,1720641040887,-500.0,0.00013988,2]
[331687491,1720641040896,-500.0,0.00013988,2]
[331687492,1720641040906,-500.0,0.00013988,2]
[331687493,1720641040915,-500.0,0.00013988,2]
[331687494,1720641040924,-500.0,0.00013988,2]
[331687495,1720641040934,-500.0,0.00013988,2]
[331687496,1720641040943,-500.0,0.00013988,2]
[331687497,1720641040953,-500.0,0.00013988,2]
[331687498,1720641040962,-500.0,0.00013988,2]
[331687499,1720641040971,-500.0,0.00013988,2]
[331687500,1720641040980,-500.0,0.00013988,2]
[331687501,1720641040990,-500.0,0.00013988,2]
[331687502,1720641040999,-500.0,0.00013988,2]
[331687503,1720641041008,-5276.65,0.00013988,2]
[331687504,1720641041017,-1794.92,0.00013988,2]
[331687505,1720641041026,-500.0,0.00013988,2]
[331687506,1720641041040,-2694.0214217,0.00013989,3]
[331687507,1720641041049,-882.19556,0.00013989,2]
[331687508,1720641041058,-157.35476,0.00013989,2]
[331687509,1720641041070,-180.02801106,0.00013997,2]
[331687510,1720641041079,-1415.4328277,0.00013998,2]
[331687511,1720641041088,-2380.77231433,0.00013998,2]
[331687512,1720641041101,-10054.02958047,0.00013998,2]
[331687513,1720641041112,-183.45910983,0.00013998,2]
[331687514,1720641041122,-182.1164965,0.00013998,2]
[331687515,1720641041131,-1071.84695952,0.00013999,5]
[331687516,1720641041140,-237.40957031,0.00013999,2]
[331687517,1720641041150,-1257.22588982,0.00013999,2]
[331687518,1720641041159,-392.6396956,0.00013999,2]
[331687519,1720641041168,-661.0,0.00014,2]
[331687520,1720641041178,-28723.71559231,0.00014,2]
[331687521,1720641041189,-9331.34339776,0.00014,2]
[331687522,1720641041200,-27662.25195561,0.00014,2]
[331687523,1720641041212,-781.93320104,0.00014,2]
[331687524,1720641041250,-308.30169765,0.00014,2]
[331687525,1720641041262,-1340.0,0.00014,2]
[331687526,1720641041275,-2454.94273917,0.00014,2]
[331687527,1720641041288,-1352.74328221,0.00014,2]
[331687528,1720641041301,-1180.22303273,0.00014,2]
[331687532,1720641044686,-1782.78285612,0.00014,2]
[331687537,1720641046068,-856.45024414,0.00014,2]
[331687538,1720641046286,-535.61041412,0.00014,2]
[331687539,1720641046344,-97515.74762341,0.00014,2]
[331687540,1720641046355,-593.0,0.00014,2]
[331687541,1720641046365,-108589.34818588,0.00014,2]
[331687554,1720641197784,500.0,0.00025353,120]
[331687555,1720641359948,1401.48538781,0.00011199,7]
[331687556,1720641361834,1890.82858828,0.00011199,2]
[331687557,1720641363763,912.10489493,0.00011199,2]
[331687558,1720641382325,717.89169523,0.00011199,2]
[331687559,1720641392109,299.376,0.00011199,2]
[331687560,1720641467672,412.61839352,0.00011199,2]
[331687561,1720641479438,613.20726568,0.00011199,2]
[331687562,1720641487329,388.50645422,0.00011199,2]
[331687563,1720641488013,155.0,0.00011199,2]